fUST/lending_fUST_20250301
["ID","MTS","AMOUNT","RATE_DAILY","PERIOD"]
[354950205,1740842972520,-500.0,0.00027776,2]
[354950206,1740842972543,-500.0,0.00027776,2]
[354950207,1740842972566,-500.0,0.00027776,2]
[354950208,1740842972589,-500.0,0.00027776,2]
[354950209,1740842972611,-503.57156651,0.00027776,2]
[354950210,1740842972633,-500.0,0.00027776,2]
[354950211,1740842972656,-738.77,0.00027776,2]
[354950212,1740842972679,-500.0,0.00027776,2]
[354950213,1740842972702,-500.0,0.00027776,2]
[354950214,1740842972726,-500.0,0.00027776,2]
[354950215,1740842972749,-500.0,0.00027776,2]
[354950216,1740842972772,-500.0,0.00027776,2]
[354950217,1740842972794,-500.0,0.00027776,2]
[354950218,1740842972817,-698.16,0.00027776,2]
[354950219,1740842972838,-500.0,0.00027776,2]
[354950220,1740842972862,-500.0,0.00027776,2]
[354950221,1740842972884,-500.0,0.00027776,2]
[354950222,1740842972907,-532.49,0.00027776,2]
[354950223,1740842972929,-500.0,0.00027776,2]
[354950224,1740842972952,-634.3,0.00027776,2]
[354950225,1740842972976,-500.0,0.00027776,2]
[354950226,1740842972999,-500.0,0.00027776,2]
[354950227,1740842973027,-503.01725698,0.00027776,2]
[354950228,1740842973051,-522.97449634,0.00027776,2]
[354950229,1740842973078,-500.0,0.00027776,2]
[354950230,1740842973103,-500.0,0.00027776,2]
[354950231,1740842973130,-500.0,0.00027776,2]
[354950232,1740842973156,-500.0,0.00027776,2]
[354950233,1740842973181,-612.15,0.00027776,2]
[354950234,1740842973207,-522.04425996,0.00027776,2]
[354950235,1740842973232,-914.64,0.00027776,2]
[354950236,1740842973256,-500.0,0.00027776,2]
[354950237,1740842973280,-500.0,0.00027776,2]
[354950238,1740842973303,-500.0,0.00027776,2]
[354950239,1740842973329,-1192.04,0.00027776,2]
[354950240,1740842973353,-500.0,0.00027776,2]
[354950241,1740842973377,-500.0,0.00027776,2]
[354950242,1740842973402,-454.30551841,0.00027776,2]
[354950243,1740842973426,-500.0,0.00027776,2]
[354950244,1740842973449,-500.0,0.00027776,2]
[354950245,1740842973473,-500.0,0.00027776,2]
[354950246,1740842973497,-500.0,0.00027776,2]
[354950247,1740842973524,-500.0,0.00027776,2]
[354950248,1740842973546,-500.0,0.00027776,2]
[354950249,1740842973568,-500.0,0.00027776,2]
[354950250,1740842973591,-500.0,0.00027776,2]
[354950251,1740842973615,-529.51,0.00027776,2]
[354950252,1740842973640,-500.0,0.00027776,2]
[354950253,1740842973664,-500.0,0.00027776,2]
[354950254,1740842973689,-500.0,0.00027776,2]
[354950255,1740842973717,-720.16,0.00027776,2]
[354950256,1740842973742,-500.0,0.00027776,2]
[354950257,1740842973766,-1601.74,0.00027776,2]
[354950258,1740842973790,-500.0,0.00027776,2]
[354950259,1740842973814,-500.0,0.00027776,2]
[354950260,1740842973838,-500.0,0.00027776,2]
[354950261,1740842973862,-500.0,0.00027776,2]
[354950262,1740842973886,-500.0,0.00027776,2]
[354950263,1740842973910,-500.0,0.00027776,2]
[354950264,1740842973934,-500.0,0.00027776,2]
[354950265,1740842973958,-500.0,0.00027776,2]
[354950266,1740842973981,-502.3882834,0.00027776,2]
[354950267,1740842974005,-500.0,0.00027776,2]
[354950268,1740842974029,-158.4122831,0.00027776,2]
[354950269,1740842974052,-500.0,0.00027776,2]
[354950270,1740842974079,-500.0,0.00027776,2]
[354950271,1740842974103,-500.0,0.00027776,2]
[354950272,1740842974127,-500.0,0.00027776,2]
[354950273,1740842974153,-500.0,0.00027776,2]
[354950274,1740842974236,-500.0,0.00027776,2]
[354950275,1740842974262,-500.0,0.00027776,2]
[354950276,1740842974286,-500.0,0.00027776,2]
[354950277,1740842974310,-500.0,0.00027776,2]
[354950278,1740842974333,-500.0,0.00027776,2]
[354950279,1740842974358,-500.0,0.00027776,2]
[354950280,1740842974381,-500.0,0.00027776,2]
[354950281,1740842974404,-500.0,0.00027776,2]
[354950282,1740842974427,-584.53899195,0.00027776,2]
[354950283,1740842974449,-501.58548571,0.00027776,2]
[354950284,1740842974474,-500.0,0.00027776,2]
[354950285,1740842974496,-500.0,0.00027776,2]
[354950286,1740842974518,-500.0,0.00027776,2]
[354950287,1740842974540,-500.0,0.00027776,2]
[354950288,1740842974562,-500.0,0.00027776,2]
[354950289,1740842974585,-501.20442962,0.00027776,2]
[354950290,1740842974607,-500.0,0.00027776,2]
[354950291,1740842974629,-500.0,0.00027776,2]
[354950292,1740842974651,-500.0,0.00027776,2]
[354950293,1740842974673,-500.0,0.00027776,2]
[354950294,1740842974695,-500.0,0.00027776,2]
[354950295,1740842974718,-500.0,0.00027776,2]
[354950296,1740842974740,-500.0,0.00027776,2]
[354950297,1740842974762,-531.81330631,0.00027776,2]
[354950298,1740842974783,-500.0,0.00027776,2]
[354950299,1740842974807,-500.0,0.00027776,2]
[354950300,1740842974829,-500.0,0.00027776,2]
[354950301,1740842974852,-500.0,0.00027776,2]
[354950302,1740842974874,-500.0,0.00027776,2]
[354950303,1740842974896,-976.88,0.00027776,2]
[354950304,1740842974918,-500.0,0.00027776,2]
[354950305,1740842974940,-500.0,0.00027776,2]
[354950306,1740842974963,-500.0,0.00027776,2]
[354950307,1740842974985,-500.0,0.00027776,2]
[354950308,1740842975007,-500.0,0.00027776,2]
[354950309,1740842975030,-500.0,0.00027776,2]
[354950310,1740842975052,-500.0,0.00027776,2]
[354950311,1740842975077,-564.3,0.00027776,2]
[354950312,1740842975099,-500.0,0.00027776,2]
[354950313,1740842975123,-500.0,0.00027776,2]
[354950314,1740842975147,-503.84917594,0.00027776,2]
[354950315,1740842975169,-500.0,0.00027776,2]
[354950316,1740842975192,-500.0,0.00027776,2]
[354950317,1740842975214,-500.0,0.00027776,2]
[354950318,1740842975237,-500.0,0.00027776,2]
[354950319,1740842975260,-500.0,0.00027776,2]
[354950320,1740842975282,-567.62,0.00027776,2]
[354950321,1740842975304,-500.0,0.00027776,2]
[354950322,1740842975327,-500.0,0.00027776,2]
[354950323,1740842975349,-609.49,0.00027776,2]
[354950324,1740842975370,-711.93,0.00027776,2]
[354950325,1740842975392,-500.0,0.00027776,2]
[354950326,1740842975413,-500.0,0.00027776,2]
[354950327,1740842975435,-500.0,0.00027776,2]
[354950328,1740842975457,-500.0,0.00027776,2]
[354950329,1740842975479,-1088.68,0.00027776,2]
[354950330,1740842975501,-500.0,0.00027776,2]
[354950331,1740842975524,-504.10048671,0.00027776,2]
[354950332,1740842975546,-500.0,0.00027776,2]
[354950333,1740842975568,-513.64183561,0.00027776,2]
[354950334,1740842975590,-500.0,0.00027776,2]
[354950335,1740842975612,-500.0,0.00027776,2]
[354950336,1740842975635,-500.0,0.00027776,2]
[354950337,1740842975658,-500.0,0.00027776,2]
[354950338,1740842975680,-500.0,0.00027776,2]
[354950339,1740842975702,-436.69125921,0.00027776,2]
[354950340,1740842975726,-681.73,0.00027776,2]
[354950341,1740842975748,-500.0,0.00027776,2]
[354950342,1740842975771,-500.0,0.00027776,2]
[354950343,1740842975794,-500.0,0.00027776,2]
[354950344,1740842975816,-500.0,0.00027776,2]
[354950345,1740842975838,-500.0,0.00027776,2]
[354950346,1740842975860,-500.0,0.00027776,2]
[354950347,1740842975881,-500.0,0.00027776,2]
[354950348,1740842975903,-500.0,0.00027776,2]
[354950349,1740842975925,-628.62194371,0.00027776,2]
[354950350,1740842975947,-500.0,0.00027776,2]
[354950351,1740842975970,-500.0,0.00027776,2]
[354950352,1740842975992,-500.0,0.00027776,2]
[354950353,1740842976014,-500.0,0.00027776,2]
[354950354,1740842976036,-500.0,0.00027776,2]
[354950355,1740842976058,-500.0,0.00027776,2]
[354950356,1740842976082,-500.0,0.00027776,2]
[354950357,1740842976105,-853.35,0.00027776,2]
[354950358,1740842976128,-500.0,0.00027776,2]
[354950359,1740842976151,-500.0,0.00027776,2]
[354950360,1740842976175,-500.0,0.00027776,2]
[354950361,1740842976197,-500.0,0.00027776,2]
[354950362,1740842976221,-277.7882721,0.00027776,2]
[354950363,1740842976243,-500.0,0.00027776,2]
[354950364,1740842976265,-499.90517087,0.00027776,2]
[354950365,1740842976288,-500.0,0.00027776,2]
[354950366,1740842976310,-500.0,0.00027776,2]
[354950367,1740842976332,-1126.07,0.00027776,2]
[354950368,1740842976354,-500.0,0.00027776,2]
[354950369,1740842976376,-500.0,0.00027776,2]
[354950370,1740842976399,-500.0,0.00027776,2]
[354950371,1740842976420,-505.1786092,0.00027776,2]
[354950372,1740842976443,-500.0,0.00027776,2]
[354950373,1740842976466,-500.0,0.00027776,2]
[354950374,1740842976487,-500.0,0.00027776,2]
[354950375,1740842976508,-508.06437309,0.00027776,2]
[354950376,1740842976530,-530.00479864,0.00027776,2]
[354950377,1740842976552,-500.0,0.00027776,2]
[354950378,1740842976573,-500.0,0.00027776,2]
[354950379,1740842976599,-500.0,0.00027776,2]
[354950380,1740842976621,-500.0,0.00027776,2]
[354950381,1740842976643,-500.0,0.00027776,2]
[354950382,1740842976665,-500.0,0.00027776,2]
[354950383,1740842976687,-500.0,0.00027776,2]
[354950384,1740842976710,-286.90586524,0.00027776,2]
[354950385,1740842976733,-500.0,0.00027776,2]
[354950386,1740842976755,-29291.48,0.00027776,2]
[354950387,1740842976777,-500.0,0.00027776,2]
[354950388,1740842976799,-420.24341282,0.00027776,2]
[354950389,1740842976820,-500.0,0.00027776,2]
[354950390,1740842976842,-717.79,0.00027776,2]
[354950391,1740842976868,-1319.48,0.00027776,2]
[354950392,1740842976890,-500.0,0.00027776,2]
[354950393,1740842976913,-717.78,0.00027776,2]
[354950394,1740842976934,-329.67957877,0.00027776,2]
[354950395,1740842976956,-500.0,0.00027776,2]
[354950396,1740842976978,-500.0,0.00027776,2]
[354950397,1740842977000,-521.48031741,0.00027776,2]
[354950398,1740842977023,-500.0,0.00027776,2]
[354950399,1740842977045,-500.0,0.00027776,2]
[354950400,1740842977069,-2047.42,0.00027776,2]
[354950401,1740842977096,-500.0,0.00027776,2]
[354950402,1740842977119,-500.0,0.00027776,2]
[354950403,1740842977144,-876.65,0.00027776,2]
[354950404,1740842977168,-500.0,0.00027776,2]
[354950405,1740842977192,-500.0,0.00027776,2]
[354950406,1740842977215,-500.0,0.00027776,2]
[354950407,1740842977237,-500.0,0.00027776,2]
[354950408,1740842977260,-500.0,0.00027776,2]
[354950409,1740842977283,-500.0,0.00027776,2]
[354950410,1740842977306,-500.0,0.00027776,2]
[354950411,1740842977330,-500.0,0.00027776,2]
[354950412,1740842977353,-501.89073655,0.00027776,2]
[354950413,1740842977376,-1794.64,0.00027776,2]
[354950414,1740842977399,-500.0,0.00027776,2]
[354950415,1740842977420,-1323.71,0.00027776,2]
[354950416,1740842977443,-500.0,0.00027776,2]
[354950417,1740842977466,-503.64646076,0.00027776,2]
[354950418,1740842977489,-500.0,0.00027776,2]
[354950419,1740842977511,-241.88330631,0.00027776,2]
[354950420,1740842977534,-500.0,0.00027776,2]
[354950421,1740842977557,-500.0,0.00027776,2]
[354950422,1740842977580,-500.0,0.00027776,2]
[354950423,1740842977603,-500.0,0.00027776,2]
[354950424,1740842977626,-500.0,0.00027776,2]
[354950425,1740842977648,-500.0,0.00027776,2]
[354950426,1740842977671,-500.0,0.00027776,2]
[354950427,1740842977693,-895.68,0.00027776,2]
[354950428,1740842977717,-500.0,0.00027776,2]
[354950429,1740842977741,-500.0,0.00027776,2]
[354950430,1740842977764,-500.0,0.00027776,2]
[354950431,1740842977787,-500.0,0.00027776,2]
[354950432,1740842977810,-505.191609,0.00027776,2]
[354950433,1740842977833,-5575.57,0.00027776,2]
[354950434,1740842977856,-500.0,0.00027776,2]
[354950435,1740842977878,-500.0,0.00027776,2]
[354950436,1740842977900,-501.60491329,0.00027776,2]
[354950437,1740842977923,-500.0,0.00027776,2]
[354950438,1740842977944,-500.0,0.00027776,2]
[354950439,1740842977969,-500.0,0.00027776,2]
[354950440,1740842977992,-500.0,0.00027776,2]
[354950441,1740842978014,-500.0,0.00027776,2]
[354950442,1740842978037,-500.0,0.00027776,2]
[354950443,1740842978060,-500.0,0.00027776,2]
[354950444,1740842978084,-500.0,0.00027776,2]
[354950445,1740842978108,-500.0,0.00027776,2]
[354950446,1740842978132,-500.0,0.00027776,2]
[354950447,1740842978160,-507.49376202,0.00027776,2]
[354950448,1740842978184,-500.0,0.00027776,2]
[354950449,1740842978208,-500.0,0.00027776,2]
[354950450,1740842978232,-500.0,0.00027776,2]
[354950451,1740842978256,-500.0,0.00027776,2]
[354950452,1740842978279,-500.0,0.00027776,2]
[354950453,1740842978302,-518.40513653,0.00027776,2]
[354950454,1740842978325,-1365.39,0.00027776,2]
[354950455,1740842978349,-500.0,0.00027776,2]
[354950456,1740842978372,-896.49,0.00027776,2]
[354950457,1740842978395,-500.0,0.00027776,2]
[354950458,1740842978417,-161.55409881,0.00027776,2]
[354950459,1740842978441,-9100.23,0.00027776,2]
[354950460,1740842978464,-500.0,0.00027776,2]
[354950461,1740842978487,-504.51595322,0.00027776,2]
[354950462,1740842978511,-500.0,0.00027776,2]
[354950463,1740842978535,-500.0,0.00027776,2]
[354950464,1740842978557,-500.0,0.00027776,2]
[354950465,1740842978580,-500.0,0.00027776,2]
[354950466,1740842978602,-500.0,0.00027776,2]
[354950467,1740842978626,-45779.01650881,0.00027776,2]
[354950468,1740842979397,-10714.81577263,0.00027776,2]
[354950469,1740842980034,500.0,0.00027397,2]
[354950470,1740842994931,163.04941635,0.00028,14]
[354950471,1740842996477,500.0,0.00027397,2]
[354950472,1740842998857,502.71714891,0.00027775,120]
[354950485,1740843033165,-785.47,0.00027759,2]
[354950486,1740843033176,-558.29,0.00027759,2]
[354950487,1740843033187,-500.0,0.00027759,2]
[354950488,1740843033197,-168.2,0.00027766,2]
[354950489,1740843033207,-168.2,0.00027766,2]
[354950490,1740843033216,-168.2,0.00027766,2]
[354950491,1740843033226,-168.2,0.00027766,2]
[354950492,1740843033236,-291.19,0.00027766,3]
[354950493,1740843033246,-873.61,0.00027766,3]
[354950494,1740843033256,-500.0,0.00027773,5]
[354950495,1740843033266,-501.13891453,0.00027773,5]
[354950496,1740843033276,-472.00599499,0.00027773,5]
[354950497,1740843033286,-305.69556243,0.00027773,5]
[354950498,1740843033297,-500.0,0.00027773,5]
[354950499,1740843033307,-300.0,0.00027773,2]
[354950500,1740843033317,-500.0,0.00027773,2]
[354950501,1740843033327,-500.0,0.00027773,2]
[354950502,1740843033337,-500.0,0.00027773,2]
[354950503,1740843033347,-500.0,0.00027773,2]
[354950504,1740843033358,-511.54275996,0.00027773,2]
[354950505,1740843033368,-500.0,0.00027773,2]
[354950506,1740843033378,-500.0,0.00027773,2]
[354950507,1740843033388,-936.92,0.00027773,2]
[354950508,1740843033399,-500.0,0.00027774,2]
[354950509,1740843033409,-500.0,0.00027774,2]
[354950510,1740843033419,-2095.37,0.00027774,2]
[354950511,1740843033429,-1259.35,0.00027774,2]
[354950512,1740843033439,-500.0,0.00027774,2]
[354950513,1740843033449,-500.0,0.00027774,2]
[354950514,1740843033458,-5706.93,0.00027774,2]
[354950515,1740843033468,-2657.42,0.00027774,2]
[354950516,1740843033478,-9745.43,0.00027774,2]
[354950517,1740843033488,-500.0,0.00027774,2]
[354950518,1740843033497,-500.0,0.00027775,2]
[354950519,1740843033507,-717.07,0.00027775,2]
[354950520,1740843033519,-500.0,0.00027775,2]
[354950521,1740843033528,-500.0,0.00027775,2]
[354950522,1740843033538,-1719.86,0.00027775,2]
[354950523,1740843033548,-505.90034123,0.00027775,2]
[354950524,1740843033557,-797.48,0.00027775,2]
[354950525,1740843033567,-500.0,0.00027775,2]
[354950526,1740843033577,-1284.06,0.00027775,2]
[354950527,1740843033586,-500.0,0.00027775,2]
[354950528,1740843033596,-5343.26,0.00027775,2]
[354950529,1740843033606,-870.77,0.00027775,2]
[354950530,1740843033616,-548.73114094,0.00027775,2]
[354950531,1740843033627,-500.0,0.00027775,2]
[354950532,1740843033636,-500.0,0.00027775,2]
[354950533,1740843033646,-628.35048087,0.00027775,2]
[354950534,1740843033655,-40072.34793974,0.00027776,2]
[354950540,1740843038683,-500.0,0.00027773,2]
[354950541,1740843038695,-500.0,0.00027775,2]
[354950542,1740843038705,-500.0,0.00027775,2]
[354950543,1740843038716,-500.0,0.00027775,2]
[354950544,1740843038727,-4960.39342248,0.00027776,2]
[354950545,1740843038741,-43705.4389119,0.00027776,2]
[354950546,1740843038754,-21245.81744444,0.00027776,2]
[354950547,1740843038765,-2338.97,0.00027776,2]
[354950548,1740843038775,-500.0,0.00027776,2]
[354950549,1740843038786,-1179.97,0.00027776,2]
[354950550,1740843038797,-1481.12,0.00027776,2]
[354950551,1740843038808,-500.0,0.00027776,2]
[354950552,1740843038819,-500.0,0.00027776,2]
[354950553,1740843038830,-3368.13,0.00027776,2]
[354950554,1740843038842,-556.97,0.00027776,2]
[354950555,1740843038853,-1513.89,0.00027776,2]
[354950556,1740843038864,-500.0,0.00027776,2]
[354950557,1740843038875,-500.0,0.00027776,2]
[354950558,1740843038886,-500.0,0.00027776,2]
[354950559,1740843038897,-500.0,0.00027776,2]
[354950560,1740843038908,-500.0,0.00027776,2]
[354950561,1740843038918,-500.0,0.00027776,2]
[354950562,1740843038929,-500.0,0.00027776,2]
[354950563,1740843038940,-500.0,0.00027776,2]
[354950564,1740843038951,-500.0,0.00027776,2]
[354950565,1740843038962,-500.0,0.00027776,2]
[354950566,1740843038972,-500.0,0.00027776,2]
[354950567,1740843038983,-500.0,0.00027776,2]
[354950568,1740843038995,-500.0,0.00027776,2]
[354950569,1740843039006,-500.0,0.00027776,2]
[354950570,1740843039018,-500.0,0.00027776,2]
[354950571,1740843039028,-500.0,0.00027776,2]
[354950572,1740843039039,-500.0,0.00027776,2]
[354950573,1740843039049,-500.0,0.00027776,2]
[354950574,1740843039059,-1710.83,0.00027776,2]
[354950575,1740843039070,-500.0,0.00027776,2]
[354950576,1740843039080,-500.0,0.00027776,2]
[354950577,1740843039093,-500.0,0.00027776,2]
[354950578,1740843039104,-500.0,0.00027776,2]
[354950579,1740843039114,-500.0,0.00027776,2]
[354950580,1740843039124,-1296.57,0.00027776,2]
[354950581,1740843039134,-4351.75,0.00027776,2]
[354950582,1740843039146,-500.0,0.00027776,2]
[354950583,1740843039156,-608.81,0.00027776,2]
[354950584,1740843039167,-500.0,0.00027776,2]
[354950585,1740843039178,-500.0,0.00027776,2]
[354950586,1740843039188,-500.0,0.00027776,2]
[354950587,1740843039198,-500.0,0.00027776,2]
[354950588,1740843039208,-500.0,0.00027776,2]
[354950589,1740843039218,-621.26,0.00027776,2]
[354950590,1740843039228,-3734.16,0.00027776,2]
[354950591,1740843039238,-968.65,0.00027776,2]
[354950592,1740843039254,-3734.16,0.00027776,2]
[354950593,1740843039265,-3734.16,0.00027776,2]
[354950594,1740843039278,-3734.16,0.00027776,2]
[354950595,1740843039289,-3734.16,0.00027776,2]
[354950596,1740843039299,-3734.16,0.00027776,2]
[354950597,1740843039310,-3734.16,0.00027776,2]
[354950598,1740843039320,-500.0,0.00027776,2]
[354950599,1740843039331,-500.0,0.00027776,2]
[354950600,1740843039341,-500.0,0.00027776,2]
[354950601,1740843039352,-721.85,0.00027776,2]
[354950602,1740843039363,-546.48,0.00027776,2]
[354950603,1740843039374,-500.0,0.00027776,2]
[354950604,1740843039384,-500.0,0.00027776,2]
[354950605,1740843039394,-500.0,0.00027776,2]
[354950606,1740843039405,-1000.0,0.00027776,2]
[354950607,1740843039415,-500.0,0.00027776,2]
[354950608,1740843039425,-857.71,0.00027776,2]
[354950609,1740843039436,-500.0,0.00027776,2]
[354950610,1740843039446,-151.0,0.00027776,7]
[354950611,1740843039456,-500.0,0.00027776,2]
[354950612,1740843039467,-500.0,0.00027776,2]
[354950613,1740843039477,-734.72,0.00027776,2]
[354950614,1740843039487,-151.0,0.00027776,7]
[354950615,1740843039497,-151.0,0.00027776,7]
[354950616,1740843039507,-500.0,0.00027776,2]
[354950617,1740843039518,-151.0,0.00027776,7]
[354950618,1740843039528,-267.78360873,0.00027776,2]
[354950619,1740843039539,-151.0,0.00027776,7]
[354950620,1740843039550,-500.0,0.00027776,2]
[354950621,1740843039561,-500.0,0.00027776,2]
[354950622,1740843039571,-11455.24,0.00027776,2]
[354950623,1740843039580,-500.0,0.00027776,2]
[354950624,1740843039591,-500.0,0.00027777,2]
[354950625,1740843039601,-500.0,0.00027777,2]
[354950626,1740843039611,-500.0,0.00027777,2]
[354950627,1740843039622,-1239.03,0.00027777,2]
[354950628,1740843039632,-920.25,0.00027777,2]
[354950629,1740843039642,-500.0,0.00027777,2]
[354950630,1740843039652,-500.0,0.00027777,2]
[354950631,1740843039662,-500.0,0.00027777,2]
[354950632,1740843039672,-500.0,0.00027777,2]
[354950633,1740843039681,-500.0,0.00027777,2]
[354950634,1740843039691,-1054.5,0.00027777,2]
[354950635,1740843039700,-1866.44,0.00027777,2]
[354950636,1740843039710,-1559.98,0.00027777,2]
[354950637,1740843039720,-984.49,0.00027777,2]
[354950638,1740843039729,-580.75058238,0.00027777,2]
[354950639,1740843039739,-730.16,0.00027777,2]
[354950640,1740843039749,-500.0,0.00027777,2]
[354950641,1740843039759,-695.48,0.00027777,2]
[354950642,1740843039770,-500.0,0.00027777,2]
[354950643,1740843039780,-611.41,0.00027777,2]
[354950644,1740843039790,-2848.3,0.00027777,2]
[354950645,1740843039801,-500.0,0.00027777,2]
[354950646,1740843039811,-500.0,0.00027777,2]
[354950647,1740843039821,-1858.93,0.00027777,2]
[354950648,1740843039832,-1848.64,0.00027777,2]
[354950649,1740843039842,-500.0,0.00027777,2]
[354950650,1740843039852,-500.0,0.00027777,2]
[354950651,1740843039862,-500.0,0.00027777,2]
[354950652,1740843039873,-1009.44,0.00027777,2]
[354950653,1740843039883,-151.0,0.00027777,7]
[354950654,1740843039893,-2568.67,0.00027777,2]
[354950655,1740843039903,-337.79262378,0.00027777,2]
[354950656,1740843039913,-500.0,0.00027777,2]
[354950657,1740843039924,-286.379103,0.00027777,7]
[354950658,1740843039935,-915.55,0.00027777,2]
[354950659,1740843039945,-286.379103,0.00027777,7]
[354950660,1740843039955,-789.22,0.00027777,2]
[354950661,1740843039965,-151.0,0.00027777,7]
[354950662,1740843039975,-151.0,0.00027777,7]
[354950663,1740843039985,-612.767147,0.00027777,7]
[354950664,1740843039995,-500.0,0.00027777,2]
[354950665,1740843040005,-612.767147,0.00027777,7]
[354950666,1740843040016,-500.0,0.00027777,2]
[354950667,1740843040026,-151.0,0.00027777,7]
[354950668,1740843040035,-151.0,0.00027777,7]
[354950669,1740843040045,-500.0,0.00027777,2]
[354950670,1740843040057,-151.0,0.00027777,7]
[354950671,1740843040067,-500.0,0.00027777,2]
[354950672,1740843040077,-5215.4,0.00027777,2]
[354950673,1740843040087,-611.51350501,0.00027899,2]
[354950674,1740843040100,-600.59870021,0.00028,30]
[354950675,1740843040110,-337.7898228,0.00028003,4]
[354950676,1740843040120,-12965.12,0.00028033,2]
[354950677,1740843040131,-2102.03,0.00028033,2]
[354950678,1740843040141,-785.47,0.00028033,2]
[354950679,1740843040153,-558.29,0.00028033,2]
[354950680,1740843040164,-500.0,0.00028047,2]
[354950681,1740843040174,-500.0,0.00028047,2]
[354950682,1740843040184,-936.92,0.00028047,2]
[354950683,1740843040194,-500.0,0.00028047,2]
[354950684,1740843040204,-1261.58,0.00028048,2]
[354950686,1740843040214,-1236.14,0.00028048,2]
[354950688,1740843040224,-3043.88,0.00028048,2]
[354950690,1740843040235,-500.0,0.00028048,2]
[354950692,1740843040244,-500.0,0.00028048,2]
[354950694,1740843040255,-1172.68,0.00028048,2]
[354950696,1740843040266,-500.0,0.00028048,2]
[354950699,1740843040276,-500.0,0.00028048,2]
[354950701,1740843040286,-13420.89,0.00028048,2]
[354950703,1740843040296,-151.0,0.00028048,7]
[354950705,1740843040306,-8170.71,0.00028048,2]
[354950707,1740843040316,-500.0,0.00028048,2]
[354950709,1740843040326,-4200.24,0.00028048,2]
[354950711,1740843040336,-211.618094,0.00028048,7]
[354950713,1740843040346,-211.618094,0.00028048,7]
[354950715,1740843040356,-2095.37,0.00028048,2]
[354950717,1740843040366,-151.0,0.00028048,7]
[354950719,1740843040375,-1259.35,0.00028048,2]
[354950721,1740843040385,-500.0,0.00028048,2]
[354950723,1740843040395,-5706.93,0.00028048,2]
[354950725,1740843040405,-151.0,0.00028048,7]
[354950727,1740843040415,-2657.42,0.00028048,2]
[354950728,1740843040425,-151.0,0.00028048,7]
[354950729,1740843040436,-151.0,0.00028048,7]
[354950730,1740843040446,-9745.43,0.00028048,2]
[354950731,1740843040456,-500.0,0.00028048,2]
[354950733,1740843040466,-151.0,0.00028048,7]
[354950735,1740843040475,-500.0,0.00028049,2]
[354950737,1740843040485,-500.0,0.00028049,2]
[354950740,1740843040495,-500.0,0.00028049,2]
[354950742,1740843040504,-508.17,0.00028049,2]
[354950744,1740843040514,-763.4,0.00028049,2]
[354950746,1740843040526,-500.0,0.00028049,2]
[354950748,1740843040536,-1511.25,0.00028049,2]
[354950750,1740843040546,-500.0,0.00028049,2]
[354950752,1740843040556,-500.0,0.00028049,2]
[354950754,1740843040566,-1620.0,0.00028049,2]
[354950756,1740843040575,-500.0,0.00028049,2]